fUST/lending_fUST_20250203
["ID","MTS","AMOUNT","RATE_DAILY","PERIOD"]
[351365942,1738543837449,-504.65006,0.00015403,2]
[351365943,1738543837461,-12985.98718891,0.00015403,2]
[351365944,1738543837471,-500.0,0.00015753,2]
[351365945,1738543837481,-169.37812797,0.00016338,2]
[351365946,1738543837492,-156.491,0.000164,2]
[351365947,1738543837502,-198.22351885,0.00016437,2]
[351365948,1738543837512,-155.00379768,0.00016437,2]
[351365949,1738543837523,-500.0,0.00016437,2]
[351365950,1738543837533,-323.32955713,0.00016437,2]
[351365951,1738543837544,-511.36437695,0.00016438,2]
[351365952,1738543837555,-500.0,0.00016438,2]
[351365953,1738543837566,-526.25470159,0.00016438,2]
[351365954,1738543837576,-500.0,0.00016438,2]
[351365956,1738543837587,-500.0,0.00016438,2]
[351365957,1738543837597,-527.87001627,0.00016438,2]
[351365958,1738543837608,-500.0,0.00016438,2]
[351365959,1738543837618,-500.0,0.00016438,2]
[351365960,1738543837629,-500.0,0.00016438,2]
[351365961,1738543837641,-500.0,0.00016438,2]
[351365962,1738543837651,-500.0,0.00016438,2]
[351365963,1738543837662,-500.0,0.00016438,2]
[351365964,1738543837672,-500.0,0.00016438,2]
[351365965,1738543837687,-200.0,0.00016438,2]
[351365967,1738543837697,-500.0,0.00016438,2]
[351365968,1738543837707,-500.0,0.00016438,2]
[351365969,1738543837718,-500.0,0.00016438,2]
[351365970,1738543837728,-500.0,0.00016438,2]
[351365971,1738543837738,-500.0,0.00016438,2]
[351365972,1738543837748,-500.0,0.00016438,2]
[351365973,1738543837758,-500.0,0.00016438,2]
[351365974,1738543837767,-500.0,0.00016438,2]
[351365975,1738543837778,-500.0,0.00016438,2]
[351365976,1738543837788,-630.59278394,0.00016438,2]
[351365977,1738543837799,-500.0,0.00016438,2]
[351365978,1738543837809,-500.0,0.00016438,2]
[351365981,1738543837820,-446.8552989,0.00016438,2]
[351365983,1738543837830,-500.0,0.00016438,2]
[351365985,1738543837840,-500.0,0.00016438,2]
[351365986,1738543837850,-500.0,0.00016438,2]
[351365987,1738543837861,-500.0,0.00016438,2]
[351365988,1738543837871,-500.0,0.00016438,2]
[351365989,1738543837881,-500.0,0.00016438,2]
[351365991,1738543837892,-500.0,0.00016438,2]
[351365993,1738543837901,-500.0,0.00016438,2]
[351365994,1738543837910,-500.0,0.00016438,2]
[351365995,1738543837920,-505.57781031,0.00016438,2]
[351365996,1738543837929,-500.0,0.00016438,2]
[351365998,1738543837946,-265.80306026,0.00016438,2]
[351366001,1738543837955,-500.0,0.00016438,2]
[351366003,1738543837964,-500.0,0.00016438,2]
[351366005,1738543837974,-500.0,0.00016438,2]
[351366006,1738543837984,-500.0,0.00016438,2]
[351366007,1738543837994,-523.66342881,0.00016438,2]
[351366008,1738543838004,-500.0,0.00016438,2]
[351366010,1738543838014,-506.48538674,0.00016438,2]
[351366012,1738543838024,-500.0,0.00016438,2]
[351366014,1738543838033,-500.0,0.00016438,2]
[351366015,1738543838043,-500.0,0.00016438,2]
[351366017,1738543838053,-500.0,0.00016438,2]
[351366019,1738543838063,-500.0,0.00016438,2]
[351366020,1738543838073,-500.0,0.00016438,2]
[351366022,1738543838085,-521.19884162,0.00016438,2]
[351366024,1738543838094,-500.0,0.00016438,2]
[351366025,1738543838104,-198.22703248,0.00016438,2]
[351366027,1738543838114,-500.0,0.00016438,2]
[351366029,1738543838125,-500.0,0.00016438,2]
[351366031,1738543838137,-500.0,0.00016438,2]
[351366033,1738543838147,-500.0,0.00016438,2]
[351366035,1738543838158,-500.0,0.00016438,2]
[351366036,1738543838168,-500.0,0.00016438,2]
[351366037,1738543838179,-500.0,0.00016438,2]
[351366039,1738543838193,-500.0,0.00016438,2]
[351366041,1738543838203,-176.90720047,0.00016438,2]
[351366043,1738543838213,-500.0,0.00016438,2]
[351366045,1738543838222,-500.0,0.00016438,2]
[351366046,1738543838232,-500.0,0.00016438,2]
[351366048,1738543838241,-500.0,0.00016438,2]
[351366049,1738543838251,-500.0,0.00016438,2]
[351366050,1738543838261,-578.43059988,0.00016438,2]
[351366052,1738543838271,-500.0,0.00016438,2]
[351366053,1738543838282,-500.0,0.00016438,2]
[351366054,1738543838292,-500.0,0.00016438,2]
[351366055,1738543838302,-500.0,0.00016438,2]
[351366056,1738543838311,-500.0,0.00016438,2]
[351366057,1738543838322,-299.06352534,0.00016438,2]
[351366058,1738543838331,-500.0,0.00016438,2]
[351366059,1738543838341,-500.0,0.00016438,2]
[351366060,1738543838351,-500.0,0.00016438,2]
[351366061,1738543838360,-500.0,0.00016438,2]
[351366062,1738543838370,-500.0,0.00016438,2]
[351366063,1738543838380,-500.0,0.00016438,2]
[351366064,1738543838390,-500.0,0.00016438,2]
[351366065,1738543838400,-500.0,0.00016438,2]
[351366066,1738543838410,-500.0,0.00016438,2]
[351366067,1738543838420,-500.0,0.00016438,2]
[351366068,1738543838430,-645.76944227,0.00016438,2]
[351366069,1738543838447,-500.0,0.00016438,2]
[351366070,1738543838457,-500.0,0.00016438,2]
[351366071,1738543838467,-500.0,0.00016438,2]
[351366073,1738543838477,-708.49170423,0.00016438,2]
[351366074,1738543838487,-500.0,0.00016438,2]
[351366075,1738543838497,-500.0,0.00016438,2]
[351366076,1738543838508,-500.0,0.00016438,2]
[351366077,1738543838519,-500.0,0.00016438,2]
[351366078,1738543838531,-554.71977024,0.00016438,2]
[351366080,1738543838542,-500.0,0.00016438,2]
[351366081,1738543838553,-500.0,0.00016438,2]
[351366082,1738543838563,-500.0,0.00016438,2]
[351366084,1738543838574,-500.0,0.00016438,2]
[351366086,1738543838584,-499.50866725,0.00016438,2]
[351366088,1738543838594,-503.45019622,0.00016438,2]
[351366090,1738543838604,-500.0,0.00016438,2]
[351366092,1738543838614,-500.0,0.00016438,2]
[351366094,1738543838624,-523.63,0.00016438,2]
[351366096,1738543838634,-500.0,0.00016438,2]
[351366098,1738543838644,-500.0,0.00016438,2]
[351366100,1738543838654,-500.0,0.00016438,2]
[351366101,1738543838664,-500.0,0.00016438,2]
[351366102,1738543838674,-500.0,0.00016438,2]
[351366103,1738543838688,-500.0,0.00016438,2]
[351366104,1738543838697,-500.0,0.00016438,2]
[351366105,1738543838706,-500.0,0.00016438,2]
[351366106,1738543838717,-500.0,0.00016438,2]
[351366107,1738543838727,-500.0,0.00016438,2]
[351366108,1738543838736,-500.0,0.00016438,2]
[351366109,1738543838747,-500.0,0.00016438,2]
[351366110,1738543838756,-500.0,0.00016438,2]
[351366111,1738543838766,-500.0,0.00016438,2]
[351366112,1738543838776,-500.0,0.00016438,2]
[351366113,1738543838899,-500.0,0.00016438,2]
[351366114,1738543838911,-500.0,0.00016438,2]
[351366115,1738543838921,-500.0,0.00016438,2]
[351366116,1738543838930,-500.0,0.00016438,2]
[351366117,1738543838944,-542.72487996,0.00016438,2]
[351366118,1738543838954,-500.0,0.00016438,2]
[351366119,1738543838964,-500.0,0.00016438,2]
[351366120,1738543838973,-500.0,0.00016438,2]
[351366121,1738543838983,-500.0,0.00016438,2]
[351366122,1738543838992,-500.0,0.00016438,2]
[351366123,1738543839001,-506.58633253,0.00016438,2]
[351366124,1738543839011,-500.0,0.00016438,2]
[351366125,1738543839020,-500.0,0.00016438,2]
[351366126,1738543839030,-1474.31,0.00016438,2]
[351366127,1738543839039,-500.0,0.00016438,2]
[351366128,1738543839049,-564.59,0.00016438,2]
[351366129,1738543839059,-500.0,0.00016438,2]
[351366130,1738543839068,-500.0,0.00016438,2]
[351366131,1738543839078,-500.0,0.00016438,2]
[351366132,1738543839088,-1353.13,0.00016438,2]
[351366133,1738543839098,-500.0,0.00016438,2]
[351366134,1738543839107,-500.0,0.00016438,2]
[351366135,1738543839119,-600.44539603,0.00016438,2]
[351366136,1738543839129,-2330.95,0.00016438,2]
[351366137,1738543839138,-500.0,0.00016438,2]
[351366138,1738543839148,-514.6803724,0.00016438,2]
[351366139,1738543839159,-500.0,0.00016438,2]
[351366140,1738543839168,-500.0,0.00016438,2]
[351366141,1738543839178,-500.0,0.00016438,2]
[351366142,1738543839192,-500.0,0.00016438,2]
[351366143,1738543839202,-507.44792533,0.00016438,2]
[351366144,1738543839211,-500.0,0.00016438,2]
[351366145,1738543839221,-500.0,0.00016438,2]
[351366146,1738543839231,-500.0,0.00016438,2]
[351366147,1738543839240,-500.0,0.00016438,2]
[351366148,1738543839250,-300.0,0.00016438,2]
[351366149,1738543839260,-500.0,0.00016438,2]
[351366150,1738543839269,-500.0,0.00016438,2]
[351366151,1738543839279,-504.28,0.00016438,2]
[351366152,1738543839289,-500.0,0.00016438,2]
[351366153,1738543839298,-500.0,0.00016438,2]
[351366154,1738543839308,-1279.68,0.00016438,2]
[351366155,1738543839317,-500.0,0.00016438,2]
[351366156,1738543839327,-500.0,0.00016438,2]
[351366157,1738543839337,-504.20449591,0.00016438,2]
[351366158,1738543839347,-500.0,0.00016438,2]
[351366159,1738543839356,-500.0,0.00016438,2]
[351366160,1738543839365,-500.0,0.00016438,2]
[351366161,1738543839375,-648.48394815,0.00016438,2]
[351366162,1738543839384,-671.7,0.00016438,2]
[351366163,1738543839394,-500.0,0.00016438,2]
[351366164,1738543839403,-500.0,0.00016438,2]
[351366165,1738543839412,-299.48275372,0.00016438,2]
[351366166,1738543839421,-500.0,0.00016438,2]
[351366167,1738543839430,-500.0,0.00016438,2]
[351366168,1738543839444,-254.75306574,0.00016438,2]
[351366169,1738543839454,-3071.97628853,0.00016438,2]
[351366170,1738543839497,-429.14,0.00016438,2]
[351366171,1738543839509,-2350.23371147,0.00016438,2]
[351366172,1738543839519,-578.94847109,0.00016438,2]
[351366173,1738543839529,-500.0,0.00016438,2]
[351366174,1738543839539,-532.74088484,0.00016438,2]
[351366175,1738543839549,-500.0,0.00016438,2]
[351366177,1738543839560,-500.0,0.00016438,2]
[351366178,1738543839570,-500.0,0.00016438,2]
[351366179,1738543839580,-500.0,0.00016438,2]
[351366180,1738543839590,-500.0,0.00016438,2]
[351366181,1738543839601,-500.0,0.00016438,2]
[351366182,1738543839612,-500.0,0.00016438,2]
[351366183,1738543839622,-500.0,0.00016438,2]
[351366184,1738543839633,-500.0,0.00016438,2]
[351366185,1738543839643,-500.0,0.00016438,2]
[351366186,1738543839654,-500.0,0.00016438,2]
[351366188,1738543839664,-500.0,0.00016438,2]
[351366189,1738543839674,-500.0,0.00016438,2]
[351366190,1738543839689,-765.64,0.00016438,2]
[351366191,1738543839699,-500.0,0.00016438,2]
[351366192,1738543839709,-500.0,0.00016438,2]
[351366193,1738543839719,-3606.95056617,0.00016438,2]
[351366195,1738543839748,-1273.32038068,0.00016438,2]
[351366196,1738543839764,-8.60905315,0.00016438,2]
[351366197,1738543839774,-500.0,0.00016438,2]
[351366198,1738543839783,-43.04771185,0.00016438,2]
[351366203,1738543839862,-456.95228815,0.00016438,2]
[351366205,1738543839871,-500.0,0.00016438,2]
[351366206,1738543839880,-500.0,0.00016438,2]
[351366207,1738543839890,-500.0,0.00016438,2]
[351366208,1738543839899,-501.07047784,0.00016438,2]
[351366209,1738543839910,-500.0,0.00016438,2]
[351366210,1738543839919,-500.0,0.00016438,2]
[351366211,1738543839928,-646.65,0.00016438,2]
[351366212,1738543839941,-500.0,0.00016438,2]
[351366213,1738543839951,-500.0,0.00016438,2]
[351366215,1738543839961,-500.0,0.00016438,2]
[351366217,1738543839970,-500.0,0.00016438,2]
[351366219,1738543839980,-500.0,0.00016438,2]
[351366221,1738543839989,-2070.4,0.00016438,2]
[351366222,1738543839998,-500.0,0.00016438,2]
[351366224,1738543840008,-499.12859565,0.00016438,2]
[351366226,1738543840017,-500.0,0.00016438,2]
[351366228,1738543840026,-808.56,0.00016438,2]
[351366229,1738543840036,-500.0,0.00016438,2]
[351366230,1738543840045,-500.0,0.00016438,2]
[351366231,1738543840055,-500.0,0.00016438,2]
[351366232,1738543840064,-500.0,0.00016438,2]
[351366233,1738543840073,-500.0,0.00016438,2]
[351366234,1738543840083,-500.0,0.00016438,2]
[351366235,1738543840092,-500.0,0.00016438,2]
[351366236,1738543840101,-500.0,0.00016438,2]
[351366237,1738543840113,-398.32106031,0.00016438,2]
[351366238,1738543840123,-513.34333386,0.00016438,2]
[351366239,1738543840132,-2461.65,0.00016438,2]
[351366240,1738543840141,-489.28306794,0.00016438,2]
[351366241,1738543840151,-500.0,0.00016438,2]
[351366242,1738543840160,-500.0,0.00016438,2]
[351366244,1738543840169,-563.02,0.00016438,2]
[351366246,1738543840179,-500.0,0.00016438,2]
[351366247,1738543840192,-500.0,0.00016438,2]
[351366249,1738543840202,-500.0,0.00016438,2]
[351366251,1738543840211,-500.0,0.00016438,2]
[351366252,1738543840220,-1578.66,0.00016438,2]
[351366253,1738543840229,-500.0,0.00016438,2]
[351366255,1738543840238,-500.0,0.00016438,2]
[351366257,1738543840247,-500.0,0.00016438,2]
[351366258,1738543840255,-500.0,0.00016438,2]
[351366259,1738543840265,-572.54,0.00016438,2]
[351366260,1738543840275,-500.0,0.00016438,2]
[351366261,1738543840284,-500.0,0.00016438,2]
[351366262,1738543840293,-500.0,0.00016438,2]
[351366263,1738543840303,-1633.31,0.00016438,2]
[351366264,1738543840312,-1142.93,0.00016438,2]
[351366265,1738543840321,-500.0,0.00016438,2]
[351366266,1738543840331,-500.0,0.00016438,2]
[351366267,1738543840340,-3786.35,0.00016438,2]
[351366268,1738543840350,-5699.73,0.00016438,2]
[351366269,1738543840359,-541.71,0.00016438,2]
[351366270,1738543840369,-500.0,0.00016438,2]
[351366271,1738543840378,-500.0,0.00016438,2]
[351366272,1738543840388,-500.0,0.00016438,2]
[351366273,1738543840398,-500.0,0.00016438,2]
[351366274,1738543840407,-500.0,0.00016438,2]
[351366275,1738543840418,-500.0,0.00016438,2]
[351366276,1738543840427,-500.77340113,0.00016438,2]
[351366277,1738543840440,-500.0,0.00016438,2]
[351366278,1738543840449,-500.0,0.00016438,2]
[351366279,1738543840458,-500.0,0.00016438,2]
[351366280,1738543840468,-500.0,0.00016438,2]
[351366281,1738543840477,-925.54,0.00016438,2]
[351366282,1738543840486,-424.60393356,0.00016438,2]
[351366283,1738543840496,-500.0,0.00016473,2]
[351366284,1738543840505,-500.0,0.00016473,2]
[351366285,1738543840515,-8579.07463176,0.00016482,2]
[351366286,1738543840525,-500.0,0.00016575,2]
[351366287,1738543840534,-500.0,0.00016575,2]
[351366288,1738543840544,-327.81420933,0.00016575,2]
[351366289,1738543840553,-500.0,0.00016575,2]
[351366290,1738543840563,-500.0,0.00016575,2]
[351366291,1738543840572,-500.0,0.00016575,2]
[351366292,1738543840582,-500.0,0.00016575,2]
[351366293,1738543840591,-500.0,0.00016575,2]
[351366294,1738543840600,-500.0,0.00016575,2]
[351366295,1738543840610,-170.15105683,0.00016575,2]
[351366296,1738543840619,-523.63,0.00016575,2]
[351366297,1738543840628,-500.0,0.00016575,2]
[351366298,1738543840638,-500.0,0.00016575,2]
[351366299,1738543840647,-500.0,0.00016575,2]
[351366300,1738543840656,-500.0,0.00016575,2]
[351366301,1738543840666,-500.0,0.00016575,2]
[351366302,1738543840675,-500.0,0.00016575,2]
[351366303,1738543840688,-410.65041535,0.00016575,2]
[351366304,1738543840697,-500.0,0.00016575,2]
[351366305,1738543840706,-500.0,0.00016575,2]
[351366306,1738543840716,-155.61735681,0.00016575,2]
[351366307,1738543840726,-1474.31,0.00016575,2]
[351366308,1738543840735,-564.59,0.00016575,2]
[351366309,1738543840744,-500.0,0.00016575,2]
[351366310,1738543840754,-500.0,0.00016575,2]
[351366311,1738543840764,-1353.13,0.00016575,2]
[351366312,1738543840774,-2330.95,0.00016575,2]
[351366314,1738543840785,-500.0,0.00016575,2]
[351366316,1738543840795,-504.28,0.00016575,2]
[351366318,1738543840804,-500.0,0.00016575,2]
[351366319,1738543840815,-1279.68,0.00016575,2]
[351366321,1738543840824,-333.4306651,0.00016575,2]
[351366322,1738543840833,-671.7,0.00016575,2]
[351366323,1738543840842,-5851.35,0.00016575,2]
[351366324,1738543840852,-500.0,0.00016575,2]
[351366325,1738543840862,-505.39196174,0.00016575,2]
[351366326,1738543840872,-500.0,0.00016575,2]
[351366327,1738543840881,-500.0,0.00016575,2]
[351366328,1738543840891,-511.54762105,0.00016575,2]
[351366329,1738543840900,-500.0,0.00016575,2]
[351366330,1738543840910,-765.64,0.00016575,2]
[351366331,1738543840920,-500.0,0.00016575,2]
[351366332,1738543840930,-500.0,0.00016575,2]
[351366333,1738543840945,-4888.88,0.00016575,2]
[351366334,1738543840955,-500.0,0.00016575,2]
[351366335,1738543840965,-500.0,0.00016575,2]
[351366336,1738543840975,-263.10480582,0.00016575,2]
[351366337,1738543840985,-646.65,0.00016575,2]
[351366338,1738543840994,-2070.4,0.00016575,2]
[351366339,1738543841004,-808.56,0.00016575,2]
[351366340,1738543841013,-500.0,0.00016575,2]
[351366341,1738543841023,-500.0,0.00016575,2]
[351366342,1738543841032,-2461.65,0.00016575,2]
[351366343,1738543841041,-500.0,0.00016575,2]
[351366344,1738543841051,-563.02,0.00016575,2]
[351366345,1738543841060,-1578.66,0.00016575,2]
[351366346,1738543841070,-572.54,0.00016575,2]
[351366347,1738543841081,-1633.31,0.00016575,2]
[351366348,1738543841094,-1142.93,0.00016575,2]
[351366349,1738543841104,-3786.35,0.00016575,2]
[351366350,1738543841113,-5699.73,0.00016575,2]
[351366351,1738543841123,-541.71,0.00016575,2]
[351366352,1738543841134,-500.0,0.00016575,2]
[351366353,1738543841143,-925.54,0.00016575,2]
[351366354,1738543841152,-217.0494119,0.000166,2]
[351366355,1738543841162,-1489.36432911,0.000167,2]
[351366356,1738543841171,-10000.0,0.000167,2]
[351366357,1738543841181,-500.0,0.0001671,2]
[351366358,1738543841196,-205.80420595,0.0001671,2]
[351366359,1738543841206,-30643.47804226,0.00016711,5]
[351366360,1738543841311,-125006.25522582,0.00016711,5]
[351366361,1738543841322,-500.1,0.00016712,2]
[351366362,1738543841332,-212.31,0.00016712,2]
[351366363,1738543841342,-500.0,0.00016712,2]
[351366364,1738543841351,-500.0,0.00016712,2]
[351366365,1738543841360,-590.152033,0.00016712,2]
[351366366,1738543841372,-429.76227797,0.00016712,2]
[351366367,1738543841382,-500.0,0.00016712,2]
[351366368,1738543841392,-523.63,0.00016712,2]
[351366369,1738543841402,-500.0,0.00016712,2]
[351366370,1738543841412,-500.0,0.00016712,2]
[351366371,1738543841421,-500.0,0.00016712,2]
[351366372,1738543841431,-589.86331513,0.00016712,2]
[351366373,1738543841443,-327.51114575,0.00016712,2]
[351366374,1738543841453,-1474.31,0.00016712,2]
[351366375,1738543841463,-564.59,0.00016712,2]
[351366376,1738543841472,-500.0,0.00016712,2]
[351366377,1738543841482,-500.0,0.00016712,2]
[351366378,1738543841492,-1353.13,0.00016712,2]
[351366379,1738543841501,-2330.95,0.00016712,2]
[351366380,1738543841511,-500.0,0.00016712,2]
[351366381,1738543841521,-504.28,0.00016712,2]
[351366382,1738543841531,-500.0,0.00016712,2]
[351366383,1738543841541,-1279.68,0.00016712,2]
[351366384,1738543841552,-671.7,0.00016712,2]
[351366385,1738543841562,-5851.35,0.00016712,2]
[351366386,1738543841572,-500.0,0.00016712,2]
[351366387,1738543841582,-500.0,0.00016712,2]
[351366388,1738543841592,-765.64,0.00016712,2]
[351366389,1738543841601,-500.0,0.00016712,2]
[351366390,1738543841611,-4888.88,0.00016712,2]
[351366391,1738543841621,-500.0,0.00016712,2]
[351366392,1738543841631,-646.65,0.00016712,2]
[351366393,1738543841640,-2070.4,0.00016712,2]
[351366394,1738543841650,-808.56,0.00016712,2]
[351366395,1738543841660,-500.0,0.00016712,2]
[351366396,1738543841669,-2461.65,0.00016712,2]
[351366397,1738543841679,-500.0,0.00016712,2]
[351366398,1738543841694,-563.02,0.00016712,2]
[351366399,1738543841704,-1578.66,0.00016712,2]
[351366400,1738543841713,-572.54,0.00016712,2]
[351366401,1738543841723,-1633.31,0.00016712,2]
[351366402,1738543841732,-1142.93,0.00016712,2]
[351366403,1738543841741,-3786.35,0.00016712,2]
[351366404,1738543841751,-5699.73,0.00016712,2]
[351366405,1738543841759,-541.71,0.00016712,2]
[351366406,1738543841768,-500.0,0.00016712,2]
[351366407,1738543841777,-925.54,0.00016712,2]
[351366408,1738543841786,-500.0,0.00016849,2]
[351366409,1738543841795,-500.0,0.00016849,2]
[351366410,1738543841804,-500.0,0.00016849,2]
[351366411,1738543841813,-523.63,0.00016849,2]
[351366412,1738543841822,-500.0,0.00016849,2]
[351366413,1738543841831,-163.088449,0.00016849,2]
[351366414,1738543841841,-500.0,0.00016849,2]
[351366415,1738543841850,-151.0,0.00016849,2]
[351366416,1738543841859,-151.0,0.00016849,2]
[351366417,1738543841868,-151.0,0.00016849,2]
[351366418,1738543841877,-1474.31,0.00016849,2]
[351366419,1738543841887,-564.59,0.00016849,2]
[351366420,1738543841896,-500.0,0.00016849,2]
[351366421,1738543841905,-381.28,0.00016849,2]
[351366422,1738543841914,-1353.13,0.00016849,2]
[351366423,1738543841923,-2330.95,0.00016849,2]
[351366424,1738543841933,-500.0,0.00016849,2]
[351366425,1738543841947,-504.28,0.00016849,2]
[351366426,1738543841956,-500.0,0.00016849,2]
[351366427,1738543841965,-151.0,0.00016849,2]
[351366428,1738543841974,-1279.68,0.00016849,2]
[351366429,1738543841983,-151.0,0.00016849,2]
[351366430,1738543841992,-151.0,0.00016849,2]
[351366431,1738543842001,-151.0,0.00016849,2]
[351366432,1738543842010,-671.7,0.00016849,2]
[351366433,1738543842019,-5851.35,0.00016849,2]
[351366434,1738543842027,-500.0,0.00016849,2]
[351366435,1738543842037,-500.0,0.00016849,2]
[351366436,1738543842046,-765.64,0.00016849,2]
[351366437,1738543842055,-500.0,0.00016849,2]
[351366438,1738543842064,-4888.88,0.00016849,2]
[351366439,1738543842074,-500.0,0.00016849,2]
[351366440,1738543842085,-646.65,0.00016849,2]
[351366441,1738543842095,-2070.4,0.00016849,2]
[351366442,1738543842104,-808.56,0.00016849,2]
[351366443,1738543842116,-458.42,0.00016849,2]
[351366444,1738543842126,-2461.65,0.00016849,2]
[351366445,1738543842135,-500.0,0.00016849,2]
[351366446,1738543842145,-563.02,0.00016849,2]
[351366447,1738543842156,-977.690664,0.00016849,2]
[351366448,1738543842166,-977.690664,0.00016849,2]
[351366449,1738543842176,-1578.66,0.00016849,2]
[351366450,1738543842191,-151.0,0.00016849,2]
[351366451,1738543842201,-572.54,0.00016849,2]
[351366452,1738543842211,-1633.31,0.00016849,2]
[351366453,1738543842221,-1142.93,0.00016849,2]
[351366454,1738543842230,-151.0,0.00016849,2]
[351366455,1738543842240,-201.827274,0.00016849,2]
[351366456,1738543842250,-3786.35,0.00016849,2]
[351366457,1738543842259,-5699.73,0.00016849,2]
[351366458,1738543842269,-201.827274,0.00016849,2]
[351366459,1738543842279,-541.71,0.00016849,2]
[351366460,1738543842289,-500.0,0.00016849,2]
[351366461,1738543842299,-925.54,0.00016849,2]
[351366462,1738543842308,-500.0,0.00016862,2]
[351366463,1738543842318,-500.0,0.00016862,2]
[351366464,1738543842328,-502.62444838,0.00016862,2]
[351366465,1738543842338,-188.804898,0.0001689,2]
[351366466,1738543842348,-151.0,0.0001689,2]
[351366467,1738543842358,-188.804898,0.0001689,2]
[351366468,1738543842368,-151.0,0.0001689,2]
[351366469,1738543842378,-311.9533514,0.000169,2]
[351366470,1738543842388,-169.37812796,0.000169,2]
[351366471,1738543842398,-311.95335133,0.00016934,2]
[351366472,1738543842410,-311.95335133,0.00016969,2]
[351366473,1738543842420,-151.0,0.00016985,2]
[351366474,1738543842431,-151.0,0.00016985,2]
[351366475,1738543842446,-151.0,0.00016985,2]
[351366476,1738543842458,-151.0,0.00016985,2]
[351366477,1738543842467,-160.0,0.00016985,2]
[351366478,1738543842478,-500.0,0.00016986,2]
[351366479,1738543842489,-500.0,0.00016986,2]
[351366480,1738543842501,-151.0,0.00016986,2]
[351366481,1738543842512,-151.0,0.00016986,2]
[351366482,1738543842522,-523.63,0.00016986,2]
[351366483,1738543842533,-279.207518,0.00016986,2]
[351366484,1738543842544,-279.207518,0.00016986,2]
[351366485,1738543842554,-500.0,0.00016986,2]
[351366486,1738543842566,-500.0,0.00016986,2]
[351366487,1738543842577,-1474.31,0.00016986,2]
[351366490,1738543842587,-564.59,0.00016986,2]
[351366492,1738543842598,-500.0,0.00016986,2]
[351366493,1738543842608,-1353.13,0.00016986,2]
[351366496,1738543842619,-2330.95,0.00016986,2]
[351366497,1738543842630,-500.0,0.00016986,2]
[351366500,1738543842639,-504.28,0.00016986,2]
[351366503,1738543842650,-500.0,0.00016986,2]
[351366505,1738543842660,-1279.68,0.00016986,2]
[351366506,1738543842670,-671.7,0.00016986,2]
[351366507,1738543842680,-5851.35,0.00016986,2]
[351366508,1738543842695,-500.0,0.00016986,2]
[351366511,1738543842706,-500.0,0.00016986,2]
[351366515,1738543842716,-765.64,0.00016986,2]
[351366518,1738543842727,-500.0,0.00016986,2]
[351366521,1738543842737,-4888.88,0.00016986,2]
[351366524,1738543842747,-500.0,0.00016986,2]
[351366527,1738543842758,-646.65,0.00016986,2]
[351366530,1738543842768,-2070.4,0.00016986,2]
[351366533,1738543842779,-808.56,0.00016986,2]
[351366536,1738543842789,-2461.65,0.00016986,2]
[351366538,1738543842799,-500.0,0.00016986,2]